bitfinex/quotes_SOLUSD_20250901
["timestamp","ask_amount","ask_price","bid_price","bid_amount"]
[1756726150335,2.89803818,199.61,199.6,3.73531162]
[1756726150740,2.34803818,199.61,199.6,3.73531162]
[1756726151050,7.90780722,199.61,199.6,3.73531162]
[1756726151456,2.89803818,199.61,199.6,3.73531162]
[1756726152439,2.89803818,199.61,199.6,3.74441544]
[1756726152639,7.90780722,199.61,199.6,3.74441544]
[1756726157464,5.58976904,199.61,199.6,3.74441544]
[1756726157666,7.90780722,199.61,199.6,3.74441544]
[1756726162670,7.90780722,199.61,199.6,3.86441544]
[1756726163043,7.90780722,199.61,199.6,3.86695436]
[1756726163455,7.35780722,199.61,199.6,3.86695436]
[1756726163653,7.35780722,199.61,199.6,3.86696672]
[1756726165268,2.34803818,199.61,199.6,3.86696672]
[1756726166469,7.35780722,199.61,199.6,3.86696672]
[1756726166669,7.35780722,199.61,199.6,4.56696672]
[1756726167269,7.35780722,199.61,199.6,3.86696672]
[1756726170160,2.34803818,199.61,199.6,3.86696672]
[1756726171376,7.35780722,199.61,199.6,3.86696672]
[1756726173467,8.04996879,199.61,199.6,3.86696672]
[1756726173648,8.04996879,199.61,199.6,3.87006501]
[1756726173649,21.30908851,199.61,199.6,3.87006501]
[1756726173849,59.92908851,199.61,199.6,3.87006501]
[1756726174658,50.65693579,199.61,199.6,3.87006501]
[1756726178778,50.10693579,199.61,199.6,3.87006501]
[1756726180798,46.11996879,199.61,199.6,3.86732628]
[1756726181173,7.49996879,199.61,199.6,3.86732628]
[1756726182298,17.32212151,199.61,199.6,3.86732628]
[1756726183199,21.18944751,199.61,199.6,3.86732628]
[1756726184388,26.0,199.59,199.58,0.12]
[1756726184589,66.93803818,199.59,199.58,0.12]
[1756726184895,67.48803818,199.59,199.58,0.12]
[1756726185099,69.49632218,199.59,199.58,0.12]
[1756726185394,0.14216157,199.58,199.56,0.12]
[1756726185691,41.08019975,199.57,199.56,0.12]
[1756726185895,46.09097291,199.57,199.56,0.12]
[1756726186192,48.09925691,199.57,199.56,0.12]
[1756726190697,48.64925691,199.57,199.56,0.12]
[1756726190999,0.14216157,199.56,199.54,0.12]
[1756726191189,48.64925691,199.57,199.52,0.12]
[1756726191190,13.59559401,199.54,199.52,0.12]
[1756726191393,50.2101909,199.53,199.52,0.12]
[1756726191619,0.14216157,199.52,199.48,0.82]
[1756726191800,50.35235247,199.51,199.48,0.82]
[1756726192101,55.36463255,199.51,199.48,0.12]
[1756726192394,57.37352155,199.51,199.49,0.72]
[1756726193670,57.37352155,199.51,199.48,0.12]
[1756726194272,57.92352155,199.51,199.48,0.12]
[1756726194480,0.14216157,199.5,199.48,0.12]
[1756726194677,40.93803818,199.49,199.48,0.12]
[1756726195091,42.94702818,199.49,199.48,0.12]
[1756726196417,47.95981077,199.49,199.48,0.12]
[1756726200319,47.95981077,199.49,199.48,0.84]
[1756726200512,47.95981077,199.49,199.48,0.12]
[1756726202212,4.32702818,199.49,199.48,0.84]
[1756726202394,42.94702818,199.49,199.48,0.84]
[1756726202595,47.95981077,199.49,199.48,0.12]
[1756726203023,9.33981077,199.49,199.48,0.84]
[1756726203210,47.95981077,199.49,199.48,0.84]
[1756726203728,9.33981077,199.49,199.48,0.84]
[1756726203927,47.95981077,199.49,199.48,0.84]
[1756726204118,48.65197234,199.49,199.48,0.12]
[1756726204302,26.14216157,199.47,199.46,0.12]
[1756726204502,0.14216157,199.46,199.45,1e-08]
[1756726204696,3.01019975,199.46,199.45,1e-08]
[1756726205117,4.46959375,199.46,199.45,1e-08]
[1756726205324,69.08959375,199.46,199.45,0.72000001]
[1756726206212,35.48313029,199.46,199.45,0.72000001]
[1756726206527,74.10313029,199.46,199.45,0.72000001]
[1756726207100,74.10313029,199.46,199.45,1e-08]
[1756726207726,9.48313029,199.46,199.45,0.72000001]
[1756726208003,0.14216157,199.48,199.45,1e-08]
[1756726208215,0.14216157,199.48,199.44,0.12]
[1756726208216,31.15594948,199.45,199.44,0.12]
[1756726208422,31.15594948,199.45,199.41,0.12]
[1756726208423,82.51614038,199.45,199.41,0.12]
[1756726208622,0.14216157,199.42,199.41,0.12]
[1756726208841,50.97235247,199.42,199.41,0.12]
[1756726209149,52.98235247,199.42,199.41,0.12]
[1756726209317,50.97235247,199.42,199.41,0.12]
[1756726209520,41.70019975,199.42,199.41,0.12]
[1756726209830,0.14216157,199.42,199.41,0.84]
[1756726210020,43.02988296,199.42,199.41,0.84]
[1756726210210,48.04442513,199.42,199.41,0.84]
[1756726210408,3.76988296,199.42,199.41,0.84]
[1756726210616,48.04442513,199.42,199.41,0.84]
[1756726211034,48.04442513,199.42,199.41,0.12]
[1756726211738,48.59442513,199.42,199.41,0.12]
[1756726212213,48.04442513,199.42,199.41,0.12]
[1756726212834,44.41670374,199.42,199.41,0.12]
[1756726213033,48.04442513,199.42,199.41,0.12]
[1756726214023,48.59442513,199.42,199.41,0.12]
[1756726214340,48.04442513,199.42,199.41,0.12]
[1756726214523,48.59442513,199.42,199.41,0.12]
[1756726215226,48.04442513,199.42,199.41,0.12]
[1756726215728,52.22214652,199.42,199.41,0.12]
[1756726215934,51.67214652,199.42,199.41,0.12]
[1756726216426,48.04442513,199.42,199.41,0.12]
[1756726216621,48.59442513,199.42,199.41,0.12]
[1756726217137,48.04442513,199.42,199.41,0.12]
[1756726219922,48.59442513,199.42,199.41,0.12]
[1756726220324,52.22214652,199.42,199.41,0.12]
[1756726220650,48.04442513,199.42,199.41,0.12]
[1756726221745,48.00442513,199.42,199.41,0.84]
[1756726221944,48.00442513,199.42,199.41,0.12]
[1756726224334,48.06442513,199.42,199.41,0.8]
[1756726224525,5.15670374,199.42,199.41,0.8]
[1756726224721,43.04988296,199.42,199.41,0.8]
[1756726224944,48.06442513,199.42,199.41,0.8]
[1756726226549,8.78442513,199.42,199.41,0.8]
[1756726226847,3.76988296,199.42,199.41,0.8]
[1756726227053,43.02988296,199.42,199.41,0.8]
[1756726228945,3.62772139,199.42,199.41,0.8]
[1756726230238,39.22,199.44,199.41,0.8]
[1756726230433,3.62772139,199.42,199.41,0.8]
[1756726230649,3.62772139,199.43,199.41,0.8]
[1756726231040,3.62772139,199.42,199.41,0.8]
[1756726231553,70.23386357,199.45,199.41,0.8]
[1756726232133,3.62772139,199.43,199.41,0.8]
[1756726232535,3.62772139,199.44,199.41,5.81473229]
[1756726232735,5.135276,199.47,199.42,0.68]
[1756726232736,3.62772139,199.47,199.42,0.68]
[1756726232955,3.62772139,199.47,199.42,4.30772139]
[1756726233164,3.62772139,199.48,199.43,4.30772139]
[1756726233457,3.62772139,199.48,199.44,0.68]
[1756726233657,0.03,199.5,199.46,3.62772139]
[1756726233850,0.03,199.5,199.47,0.68]
[1756726234048,3.65772139,199.5,199.47,0.68]
[1756726234638,0.03,199.5,199.47,0.68]
[1756726235740,0.03,199.5,199.49,3.62772139]
[1756726236157,0.03,199.5,199.49,9.32050398]
[1756726237062,0.03,199.5,199.49,5.69278259]
[1756726237447,0.03,199.5,199.49,9.32050398]
[1756726237951,0.03,199.5,199.49,22.91609799]
[1756726238866,0.03,199.5,199.49,5.69278259]
[1756726239187,0.03,199.5,199.49,9.32050398]
[1756726239942,0.03,199.5,199.48,8.641183]
[1756726240157,3.62772139,199.49,199.47,0.68]
[1756726240769,3.62772139,199.49,199.48,0.68]
[1756726241749,0.03,199.5,199.48,0.68]
[1756726241953,3.62772139,199.49,199.46,0.68]
[1756726242165,3.62772139,199.48,199.47,0.68]
[1756726242551,3.62772139,199.48,199.45,2.688688]
[1756726242752,3.62772139,199.47,199.46,0.68]
[1756726243664,5.04253976,199.5,199.46,0.68]
[1756726243860,3.62772139,199.47,199.44,5.01235]
[1756726244059,3.62772139,199.45,199.44,5.01235]
[1756726244550,3.62772139,199.45,199.42,0.68]
[1756726244745,3.62772139,199.44,199.41,0.12]
[1756726244957,3.62772139,199.44,199.43,0.68]
[1756726246150,47.93262842,199.5,199.43,0.68]
[1756726246352,3.62772139,199.47,199.43,0.68]
[1756726247053,3.62772139,199.48,199.43,9.32190527]
[1756726247245,3.62772139,199.48,199.44,0.68]
[1756726247989,3.62772139,199.47,199.44,0.68]
[1756726248174,3.62772139,199.46,199.43,5.25235]
[1756726248381,3.62772139,199.44,199.42,0.68]
[1756726249373,3.62772139,199.43,199.41,0.12]
[1756726249673,3.62772139,199.42,199.41,0.12]
[1756726249975,3.62772139,199.42,199.41,0.8]
[1756726251880,3.62772139,199.43,199.41,0.8]
[1756726252288,3.62772139,199.43,199.41,0.12]
[1756726252492,3.62772139,199.43,199.42,0.7]
[1756726253092,3.62772139,199.43,199.41,0.12]
[1756726253389,4.17772139,199.42,199.41,0.12]
[1756726253755,0.69216157,199.42,199.41,0.12]
[1756726253979,9.33442513,199.42,199.41,0.12]
[1756726256066,8.78442513,199.42,199.41,0.12]
[1756726256270,9.33442513,199.42,199.41,0.12]
[1756726258689,5.70670374,199.42,199.41,0.12]
[1756726258887,9.33442513,199.42,199.41,0.12]
[1756726261784,5.15670374,199.42,199.41,0.12]
[1756726261987,9.33442513,199.42,199.41,0.12]
[1756726263477,22.93001914,199.42,199.41,0.12]
[1756726263679,5.1572067,199.4,199.39,0.12]
[1756726263880,65.02824349,199.4,199.39,1e-08]
[1756726264079,65.02824349,199.4,199.37,0.12]
[1756726264080,39.73775558,199.38,199.37,0.12]
[1756726264295,43.36547697,199.38,199.37,0.12]
[1756726264593,45.92608297,199.38,199.37,0.12]
[1756726265491,148.43775558,199.37,199.27,0.7]
[1756726265787,157.08127673,199.37,199.36,1e-08]
[1756726265990,157.63127673,199.37,199.36,1e-08]
[1756726267492,196.65127673,199.37,199.36,1e-08]
[1756726267788,154.00355534,199.37,199.36,1e-08]
[1756726268093,196.10127673,199.37,199.36,1e-08]
[1756726268266,196.65127673,199.37,199.36,1e-08]
[1756726270090,208.48568272,199.37,199.36,1e-08]
[1756726270270,208.48568272,199.37,199.36,0.70000001]
[1756726270471,182.48568272,199.37,199.36,0.70000001]
[1756726270895,182.48568272,199.37,199.36,1e-08]
[1756726271192,182.34352115,199.37,199.36,1e-08]
[1756726271492,182.48568272,199.37,199.36,1e-08]
[1756726271869,143.48568272,199.37,199.36,1e-08]
[1756726272068,178.85796133,199.37,199.36,1e-08]
[1756726272267,182.48568272,199.37,199.36,1e-08]
[1756726273074,183.03568272,199.37,199.36,1e-08]
[1756726273479,182.48568272,199.37,199.36,1e-08]
[1756726274091,182.46568272,199.37,199.36,0.70000001]
[1756726274592,182.54878455,199.37,199.36,0.70000001]
[1756726274774,134.78310183,199.37,199.36,0.70000001]
[1756726275090,2.010202,199.41,199.36,4.3277214]
[1756726275289,38.96,199.43,199.38,3.62772139]
[1756726275290,0.17216157,199.42,199.38,3.62772139]
[1756726275465,0.03,199.42,199.38,3.62772139]
[1756726275795,0.03,199.42,199.39,0.7]
[1756726280871,0.03,199.42,199.39,5.71522499]
[1756726281077,0.03,199.42,199.39,9.34294638]
[1756726281392,0.03,199.42,199.4,0.7]
[1756726281571,3.62772139,199.41,199.36,0.70000001]
[1756726281771,3.62772139,199.37,199.36,0.71000001]
[1756726283594,3.62772139,199.37,199.36,1e-08]
[1756726283800,30.39988296,199.37,199.36,1e-08]
[1756726283997,43.99547697,199.37,199.36,1e-08]
[1756726284380,49.01127673,199.37,199.36,1e-08]
[1756726285178,13.73775558,199.36,199.34,0.2]
[1756726285373,56.32547697,199.35,199.34,0.2]
[1756726285677,56.95547697,199.35,199.34,0.2]
[1756726286490,63.98258795,199.35,199.34,0.2]
[1756726286696,26.0,199.33,199.32,0.12]
[1756726286887,29.62772139,199.33,199.32,0.12]
[1756726287076,30.25772139,199.33,199.32,0.12]
[1756726288600,49.01228327,199.33,199.32,0.12]
[1756726288801,49.01228327,199.33,199.32,1e-08]
[1756726288983,52.64000466,199.33,199.32,1e-08]
[1756726289385,45.38456188,199.33,199.32,1e-08]
[1756726289584,48.38228327,199.33,199.32,1e-08]
[1756726289787,34.78668926,199.33,199.32,0.71000001]
[1756726289990,34.64452769,199.33,199.32,1e-08]
[1756726290188,48.2401217,199.33,199.32,1e-08]
[1756726290486,49.01228327,199.33,199.32,1e-08]
[1756726290693,48.38228327,199.33,199.32,1e-08]
[1756726291001,49.01228327,199.33,199.32,1e-08]
[1756726292081,48.38228327,199.33,199.32,1e-08]
[1756726292809,49.01228327,199.33,199.32,1e-08]
[1756726294011,48.38228327,199.33,199.32,1e-08]
[1756726294504,50.39339427,199.33,199.32,1e-08]
[1756726295791,51.02339427,199.33,199.32,1e-08]
[1756726297089,89.29339427,199.33,199.32,1e-08]
[1756726298209,50.39339427,199.33,199.32,1e-08]
[1756726298415,89.29339427,199.33,199.32,1e-08]
[1756726298913,89.92339427,199.33,199.32,1e-08]
[1756726300607,51.02339427,199.33,199.32,1e-08]
[1756726300930,87.89228327,199.33,199.32,1e-08]
[1756726301916,87.26228327,199.33,199.32,1e-08]
[1756726303404,87.29228327,199.33,199.32,1e-08]
[1756726303610,48.41228327,199.33,199.32,1e-08]
[1756726303793,87.27228327,199.33,199.32,1e-08]
[1756726304194,44.78456188,199.33,199.32,0.71000001]
[1756726304392,87.1301217,199.33,199.32,0.71000001]
[1756726304712,87.27228327,199.33,199.32,1e-08]
[1756726305022,87.1301217,199.33,199.32,1e-08]
[1756726305193,87.27228327,199.33,199.32,1e-08]
[1756726307118,31.18896787,199.33,199.32,1e-08]
[1756726307420,0.03,199.35,199.32,0.71000001]
[1756726308114,3.65772139,199.35,199.32,0.71000001]
[1756726308997,0.03,199.35,199.32,0.71000001]
[1756726309706,3.65772139,199.35,199.32,0.71000001]
[1756726310216,0.03,199.35,199.32,0.71000001]
[1756726313002,0.03,199.35,199.32,9.35474625]
[1756726313404,0.03,199.35,199.33,0.67]
[1756726316833,3.65772139,199.35,199.32,1e-08]
[1756726317019,3.65772139,199.35,199.34,0.67]
[1756726317202,0.03,199.35,199.34,0.67]
[1756726317402,0.03,199.35,199.32,1e-08]
[1756726317403,3.65772139,199.35,199.32,1e-08]
[1756726317728,3.62772139,199.34,199.33,0.67]
[1756726317907,3.62772139,199.34,199.32,1e-08]
[1756726318420,3.62772139,199.34,199.33,0.67]
[1756726320529,3.65772139,199.35,199.33,0.67]
[1756726320729,3.65772139,199.35,199.34,0.67]
[1756726320928,0.03,199.35,199.34,0.67]
[1756726322335,0.03,199.35,199.32,1e-08]
[1756726322512,3.65772139,199.35,199.32,0.67000001]
[1756726322713,0.03,199.35,199.32,0.67000001]
[1756726323332,3.65772139,199.35,199.32,0.67000001]
[1756726323512,8.67402534,199.35,199.33,0.67]
[1756726323712,3.62772139,199.34,199.32,1e-08]
[1756726323937,3.62772139,199.33,199.32,1e-08]
[1756726324241,3.76988296,199.33,199.32,1e-08]
[1756726324406,30.42988296,199.33,199.32,1e-08]
[1756726324606,35.44668926,199.33,199.32,1e-08]
[1756726325024,34.78668926,199.33,199.32,1e-08]
[1756726327243,35.44668926,199.33,199.32,1e-08]
[1756726327420,34.78668926,199.33,199.32,1e-08]
[1756726332727,73.56668926,199.33,199.32,1e-08]
[1756726333228,87.82228327,199.33,199.32,1e-08]
[1756726338162,94.82269225,199.33,199.32,1e-08]
[1756726338442,91.19497086,199.33,199.32,1e-08]
[1756726339854,94.82269225,199.33,199.32,1e-08]
[1756726341643,94.85269225,199.33,199.32,1e-08]
[1756726342236,39.73775558,199.29,199.28,0.12]
[1756726342439,82.14547697,199.29,199.28,0.12]
[1756726342628,82.80547697,199.29,199.28,0.12]
[1756726343136,0.14216157,199.24,199.23,0.65]
[1756726343345,42.54988296,199.24,199.23,0.65]
[1756726344739,47.56895543,199.24,199.23,0.65]
[1756726349842,8.78895543,199.24,199.23,0.65]
[1756726350049,47.56895543,199.24,199.23,0.65]
[1756726351137,47.56895543,199.24,199.21,0.65]
[1756726351338,3.62772139,199.22,199.21,0.65]
[1756726351547,42.40772139,199.22,199.16,3.62772139]
[1756726351853,3.62772139,199.21,199.17,3.62772139]
[1756726352239,3.62772139,199.21,199.18,0.65]
[1756726354438,5.01989894,199.21,199.19,0.65]
[1756726354637,3.62772139,199.2,199.19,0.65]
[1756726354840,3.62772139,199.2,199.15,3.62772139]
[1756726355141,3.62772139,199.18,199.12,5.02209722]
[1756726355336,3.62772139,199.18,199.13,4.27772139]
[1756726355546,3.62772139,199.18,199.14,0.65]
[1756726356056,8.64831741,199.18,199.14,0.65]
[1756726356739,3.62772139,199.17,199.14,0.65]
[1756726357365,3.62772139,199.16,199.14,0.65]
[1756726358039,8.64876839,199.17,199.14,0.65]
[1756726358242,3.62772139,199.18,199.14,0.65]
[1756726358545,3.62772139,199.17,199.14,0.65]
[1756726358863,3.62772139,199.17,199.14,0.77]
[1756726359366,3.62772139,199.18,199.14,0.77]
[1756726360468,8.64844288,199.18,199.14,0.77]
[1756726361968,3.62772139,199.18,199.14,0.77]
[1756726364666,8.64832868,199.18,199.14,0.77]
[1756726365041,3.62772139,199.18,199.14,0.77]
[1756726366567,8.64629009,199.26,199.17,3.62772139]
[1756726366782,0.03,199.28,199.24,3.62772139]
[1756726366983,0.03,199.28,199.26,3.62772139]
[1756726367154,0.03,199.28,199.27,3.62772139]
[1756726367463,0.03,199.28,199.25,12.92724539]
[1756726367764,3.65772139,199.28,199.23,3.62772139]
[1756726368094,0.03,199.28,199.26,0.65]
[1756726368968,0.03,199.28,199.24,8.64498939]
[1756726369284,3.65772139,199.28,199.25,0.65]
[1756726369480,0.03,199.28,199.26,0.65]
[1756726369985,3.65772139,199.28,199.24,5.667268]
[1756726370281,0.14216157,199.26,199.21,0.65]
[1756726370459,3.62772139,199.23,199.21,0.65]
[1756726370656,26.03,199.28,199.21,4.27772139]
[1756726370966,0.03,199.28,199.22,3.62772139]
[1756726371282,3.62772139,199.27,199.21,5.019972]
[1756726371467,16.22545268,199.27,199.21,5.019972]
[1756726371669,16.22545268,199.27,199.22,3.62772139]
[1756726371979,3.62772139,199.26,199.21,8.64769339]
[1756726372161,17.61626269,199.27,199.21,8.64769339]
[1756726372487,12.59773129,199.27,199.23,3.62772139]
[1756726372789,12.59773129,199.27,199.22,3.62772139]
[1756726373088,12.59773129,199.27,199.23,0.7]
[1756726373288,16.22545268,199.27,199.23,0.7]
[1756726373659,21.24382662,199.27,199.23,0.7]
[1756726373957,21.24382662,199.27,199.22,3.62772139]
[1756726374162,21.24382662,199.27,199.24,0.7]
[1756726374363,12.59773129,199.27,199.24,0.7]
[1756726375083,3.62772139,199.25,199.17,0.7]
[1756726375264,3.62772139,199.22,199.17,0.7]
[1756726375465,3.62772139,199.21,199.17,10.739702]
[1756726375664,3.62772139,199.21,199.17,0.7]
[1756726375875,0.14216157,199.24,199.18,0.7]
[1756726376076,3.62772139,199.22,199.18,0.7]
[1756726376279,3.62772139,199.22,199.19,0.7]
[1756726376671,3.62772139,199.21,199.17,0.7]
[1756726376978,3.62772139,199.2,199.15,18.59331539]
[1756726377378,3.62772139,199.21,199.16,0.7]
[1756726377580,3.62772139,199.21,199.15,22.9145828]
[1756726377581,3.62772139,199.21,199.17,0.7]
[1756726377965,5.01963936,199.22,199.17,0.7]
[1756726378164,3.62772139,199.21,199.17,0.7]
[1756726378365,4.29772139,199.21,199.15,18.59331539]
[1756726379191,8.6476161,199.21,199.15,17.89331539]
[1756726379487,8.6476161,199.21,199.16,0.7]
[1756726379677,8.6476161,199.21,199.17,0.12]
[1756726379884,3.62772139,199.21,199.18,0.7]
[1756726380218,3.62772139,199.22,199.18,0.7]
[1756726380367,8.647616,199.26,199.21,3.62772139]
[1756726380684,12.59773129,199.27,199.24,3.62772139]
[1756726380879,12.59773129,199.27,199.25,0.7]
[1756726381085,12.59773129,199.27,199.26,4.44920132]
[1756726381795,12.59773129,199.27,199.26,4.44908948]
[1756726382291,12.59773129,199.27,199.26,4.44783526]
[1756726383072,12.59773129,199.27,199.26,3.74783526]
[1756726383273,13.26773129,199.27,199.26,3.74783526]
[1756726383580,16.89545268,199.27,199.26,3.74783526]
[1756726383788,21.91376953,199.27,199.26,3.74783526]
[1756726384487,22.0559311,199.27,199.26,3.74783526]
[1756726384988,26.0,199.24,199.19,13.267731]
[1756726385322,3.62772139,199.2,199.17,0.12]
[1756726385474,3.62772139,199.18,199.17,0.12]
[1756726386392,4.29772139,199.18,199.17,0.12]
[1756726387488,9.31830578,199.18,199.17,0.12]
[1756726387680,5.69058439,199.18,199.17,0.12]
[1756726387885,9.31830578,199.18,199.17,0.12]
[1756726388387,23.05606136,199.18,199.17,0.12]
[1756726388589,19.42833997,199.18,199.17,0.12]
[1756726388786,23.05606136,199.18,199.17,0.12]
[1756726389775,26.14216157,199.18,199.17,0.12]
[1756726390092,29.76988296,199.18,199.17,0.12]
[1756726390277,30.43988296,199.18,199.17,0.12]
[1756726390690,44.03547697,199.18,199.17,0.12]
[1756726391226,46.04800497,199.18,199.17,0.12]
[1756726391511,51.06858936,199.18,199.17,0.12]
[1756726393506,0.14216157,199.16,199.14,0.12]
[1756726393703,69.59988296,199.16,199.14,0.12]
[1756726395418,74.62097153,199.16,199.14,0.12]
[1756726395594,76.63380353,199.16,199.14,0.12]
[1756726395796,64.22939754,199.16,199.14,0.12]
[1756726396403,64.20939754,199.16,199.14,0.12]
[1756726396602,25.06939754,199.16,199.14,0.12]
[1756726396824,64.20939754,199.16,199.14,0.12]
[1756726397115,13.73775558,199.15,199.14,1e-08]
[1756726397320,22.38681766,199.15,199.14,1e-08]
[1756726397508,23.05681766,199.15,199.14,1e-08]
[1756726398504,39.59559401,199.12,198.92,20.0]
[1756726398703,48.16352114,199.15,199.01,0.7]
[1756726398704,12.51661745,199.06,199.01,0.7]
[1756726398911,3.62772139,199.05,199.01,0.7]
[1756726399243,3.62772139,199.02,198.97,2.01344]
[1756726399405,26.0,199.01,198.98,0.7]
[1756726399723,0.14216157,199.03,198.99,3.62772139]
[1756726399919,3.76988296,199.05,199.0,0.7]
[1756726400126,3.76988296,199.05,198.92,15.1046]
[1756726400127,0.14216157,199.02,199.01,0.7]
[1756726400297,3.76988296,199.02,198.98,0.7]
[1756726400494,0.14216157,199.02,198.99,0.7]
[1756726400716,0.14216157,199.04,199.01,3.62772139]
[1756726400918,16.14433884,199.06,199.02,0.7]
[1756726401126,12.51661745,199.06,199.02,0.7]
[1756726401308,16.14433884,199.06,199.03,0.7]
[1756726401509,12.51661745,199.06,199.04,0.7]
[1756726401850,3.76988296,199.05,199.0,0.69]
[1756726402008,3.76988296,199.05,199.01,0.69]
[1756726402214,3.76988296,199.05,199.02,0.69]
[1756726402400,3.76988296,199.05,198.95,38.56543273]
[1756726402605,3.76988296,199.05,199.02,0.69]
[1756726402803,12.51661745,199.06,199.03,0.69]
[1756726403196,12.51661745,199.06,199.0,0.69]
[1756726403504,12.51661745,199.06,199.02,3.62772139]
[1756726403712,12.51661745,199.06,199.01,5.71482038]
[1756726403923,12.51661745,199.06,199.02,4.31772139]
[1756726404101,12.51661745,199.06,199.03,0.69]
[1756726404432,16.14433884,199.06,199.03,0.69]
[1756726404924,16.14433884,199.06,199.0,8.65282934]
[1756726405101,3.62772139,199.02,198.98,0.69]
[1756726405301,3.62772139,199.01,198.98,0.69]
[1756726405708,0.14216157,199.02,198.99,0.69]
[1756726406127,3.76988296,199.02,198.99,0.69]
[1756726406633,0.14216157,199.02,198.96,5.02601498]
[1756726406832,3.76988296,199.02,198.99,0.69]
[1756726407305,0.14216157,199.02,198.99,0.69]
[1756726407506,3.76988296,199.02,198.97,8.6535764]
[1756726407706,3.76988296,199.02,198.98,0.69]
[1756726408016,3.62772139,199.01,198.99,0.69]
[1756726408229,3.76988296,199.03,199.0,0.69]
[1756726408407,3.62772139,199.05,199.0,4.31772139]
[1756726408608,52.49661745,199.06,199.01,0.69]
[1756726408810,12.51661745,199.06,199.02,8.65234203]
[1756726409038,12.51661745,199.06,199.03,0.69]
[1756726409209,12.51661745,199.06,199.04,0.69]
[1756726409409,12.51661745,199.06,199.05,0.69]
[1756726409721,16.14433884,199.06,199.02,0.69]
[1756726409914,16.14433884,199.06,199.03,0.69]
[1756726410605,16.14433884,199.06,199.04,0.69]
[1756726410606,12.51661745,199.06,199.04,0.69]
[1756726410931,3.62772139,199.05,199.0,0.69]
[1756726411234,3.62772139,199.04,199.01,0.69]
[1756726411613,16.14433884,199.06,199.02,0.69]
[1756726411808,16.14433884,199.06,199.03,0.69]
[1756726413522,12.51661745,199.06,199.03,5.02435005]
[1756726413833,16.14433884,199.06,199.0,0.69]
[1756726414038,12.51661745,199.06,199.0,4.31772139]
[1756726414213,12.51661745,199.06,199.05,3.62772139]
[1756726414418,12.51661745,199.06,199.05,4.31772139]
[1756726414719,11.79661745,199.06,199.05,4.31772139]
[1756726414919,15.096239,199.15,199.06,17.58263839]
[1756726415129,3.62772139,199.14,199.09,3.62772139]
[1756726415312,3.62772139,199.14,199.09,4.31772139]
[1756726415637,4.30772139,199.16,199.1,0.69]
[1756726415836,4.30772139,199.16,199.1,4.31772139]
[1756726416135,3.62772139,199.15,199.1,4.31772139]
[1756726416333,4.30772139,199.15,199.1,4.31772139]
[1756726416850,4.30772139,199.15,199.1,9.34031347]
[1756726417142,4.30772139,199.15,199.1,8.65031347]
[1756726417526,0.68,199.15,199.1,9.34031347]
[1756726417835,0.03,199.12,199.1,5.71259208]
[1756726418016,0.03,199.12,199.11,3.62772139]
[1756726418533,0.03,199.12,199.11,4.31772139]
[1756726418906,0.03,199.12,199.11,35.34007084]
[1756726420011,0.03,199.12,199.11,38.96779284]
[1756726420214,0.03,199.12,199.11,34.65007145]
[1756726420438,0.03,199.12,199.11,3.62772139]
[1756726420638,0.03,199.12,199.11,8.65007084]
[1756726420958,0.03,199.12,199.11,9.34007084]
[1756726421329,0.03,199.12,199.11,35.34007084]
[1756726422259,0.03,199.12,199.11,75.18007084]
[1756726423062,0.68,199.21,199.11,87.73594447]
[1756726423232,0.68,199.21,199.17,3.62772139]
[1756726423438,3.62772139,199.22,199.17,3.62772139]
[1756726423859,0.68,199.21,199.17,3.62772139]
[1756726424262,0.68,199.2,199.17,3.62772139]
[1756726424628,0.68,199.22,199.17,3.62772139]
[1756726424837,133.9,199.24,199.19,3.62772139]
[1756726425053,26.0,199.25,199.19,8.64797575]
[1756726425054,0.68,199.23,199.19,8.64797575]
[1756726425364,5.01861423,199.26,199.19,5.02025436]
[1756726425666,5.01861423,199.26,199.16,5.02108857]